{"text_format":"3","workbook":"xlsx","n_sheets":1,"sheets":["Протокол ШЭ ВОШ по предмету"],"not_rendered":{"external_links":1,"defined_names":1},"read":"whole","date_system":"1900"}

{"sheet":"Протокол ШЭ ВОШ по предмету","index":0,"n_rows":71,"n_cols":15,"rows_kept":71}
["№","Фамилия","Имя","Отчество","Дата рождения","Пол","Участник с ОВЗ (да/нет)","Класс обучения","Класс участия","Балл","Максимальный балл","Статус","Призёр муниципального этапа прошлого года","ФИО учителя","Место работы учителя"]
[1,{"$f":"'[1]Протокол ШЭ ВОШ по предмету'!B2","v":"Ахметов"},{"$f":"'[1]Протокол ШЭ ВОШ по предмету'!C2","v":"Адам"},{"$f":"'[1]Протокол ШЭ ВОШ по предмету'!D2","v":"Марселович"},{"$f":"'[1]Протокол ШЭ ВОШ по предмету'!E2","v":"2012-02-02"},{"$f":"'[1]Протокол ШЭ ВОШ по предмету'!F2","v":"М"},"нет",4,4,{"$f":"'[1]Протокол ШЭ ВОШ по предмету'!J2","v":15},{"$f":"'[1]Протокол ШЭ ВОШ по предмету'!K2","v":45},{"$f":"'[1]Протокол ШЭ ВОШ по предмету'!L2","v":"участник"},"нет",{"$f":"'[1]Протокол ШЭ ВОШ по предмету'!N2","v":"Катасонова Наталья Маратовна"},{"$f":"'[1]Протокол ШЭ ВОШ по предмету'!O2","v":"Муниципальное бюджетное общеобразовательное учреждение \"Средняя общеобразовательная школа № 12 с углубленным изучением отдельных предметов\"\" Нижнекамского муниципального района Республики Татарстан\""}]
[2,{"$f":"'[1]Протокол ШЭ ВОШ по предмету'!B3","v":"Иванова"},{"$f":"'[1]Протокол ШЭ ВОШ по предмету'!C3","v":"Александра"},{"$f":"'[1]Протокол ШЭ ВОШ по предмету'!D3","v":"Александровна"},{"$f":"'[1]Протокол ШЭ ВОШ по предмету'!E3","v":"2012-03-12"},{"$f":"'[1]Протокол ШЭ ВОШ по предмету'!F3","v":"Ж"},"нет",4,4,{"$f":"'[1]Протокол ШЭ ВОШ по предмету'!J3","v":10},{"$f":"'[1]Протокол ШЭ ВОШ по предмету'!K3","v":45},{"$f":"'[1]Протокол ШЭ ВОШ по предмету'!L3","v":"участник"},{"$f":"'[1]Протокол ШЭ ВОШ по предмету'!M3","v":"нет"},{"$f":"'[1]Протокол ШЭ ВОШ по предмету'!N3","v":"Катасонова Наталья Маратовна"},{"$f":"'[1]Протокол ШЭ ВОШ по предмету'!O3","v":"Муниципальное бюджетное общеобразовательное учреждение \"Средняя общеобразовательная школа № 12 с углубленным изучением отдельных предметов\"\" Нижнекамского муниципального района Республики Татарстан\""}]
[3,{"$f":"'[1]Протокол ШЭ ВОШ по предмету'!B4","v":"Кокотеев"},{"$f":"'[1]Протокол ШЭ ВОШ по предмету'!C4","v":"Максим"},{"$f":"'[1]Протокол ШЭ ВОШ по предмету'!D4","v":"Михайлович"},{"$f":"'[1]Протокол ШЭ ВОШ по предмету'!E4","v":"2012-08-10"},{"$f":"'[1]Протокол ШЭ ВОШ по предмету'!F4","v":"М"},"нет",4,4,{"$f":"'[1]Протокол ШЭ ВОШ по предмету'!J4","v":13},{"$f":"'[1]Протокол ШЭ ВОШ по предмету'!K4","v":45},{"$f":"'[1]Протокол ШЭ ВОШ по предмету'!L4","v":"участник"},{"$f":"'[1]Протокол ШЭ ВОШ по предмету'!M4","v":"нет"},{"$f":"'[1]Протокол ШЭ ВОШ по предмету'!N4","v":"Катасонова Наталья Маратовна"},{"$f":"'[1]Протокол ШЭ ВОШ по предмету'!O4","v":"Муниципальное бюджетное общеобразовательное учреждение \"Средняя общеобразовательная школа № 12 с углубленным изучением отдельных предметов\"\" Нижнекамского муниципального района Республики Татарстан\""}]
[4,{"$f":"'[1]Протокол ШЭ ВОШ по предмету'!B5","v":"Махмутова"},{"$f":"'[1]Протокол ШЭ ВОШ по предмету'!C5","v":"Лидия"},{"$f":"'[1]Протокол ШЭ ВОШ по предмету'!D5","v":"Рафаэлевна"},{"$f":"'[1]Протокол ШЭ ВОШ по предмету'!E5","v":"2012-08-09"},{"$f":"'[1]Протокол ШЭ ВОШ по предмету'!F5","v":"Ж"},"нет",4,4,{"$f":"'[1]Протокол ШЭ ВОШ по предмету'!J5","v":11},{"$f":"'[1]Протокол ШЭ ВОШ по предмету'!K5","v":45},{"$f":"'[1]Протокол ШЭ ВОШ по предмету'!L5","v":"участник"},{"$f":"'[1]Протокол ШЭ ВОШ по предмету'!M5","v":"нет"},{"$f":"'[1]Протокол ШЭ ВОШ по предмету'!N5","v":"Катасонова Наталья Маратовна"},{"$f":"'[1]Протокол ШЭ ВОШ по предмету'!O5","v":"Муниципальное бюджетное общеобразовательное учреждение \"Средняя общеобразовательная школа № 12 с углубленным изучением отдельных предметов\"\" Нижнекамского муниципального района Республики Татарстан\""}]
[5,{"$f":"'[1]Протокол ШЭ ВОШ по предмету'!B6","v":"Ильин"},{"$f":"'[1]Протокол ШЭ ВОШ по предмету'!C6","v":"Никита"},{"$f":"'[1]Протокол ШЭ ВОШ по предмету'!D6","v":"Робертович"},{"$f":"'[1]Протокол ШЭ ВОШ по предмету'!E6","v":"2012-11-04"},{"$f":"'[1]Протокол ШЭ ВОШ по предмету'!F6","v":"М"},"нет",4,4,{"$f":"'[1]Протокол ШЭ ВОШ по предмету'!J6","v":10},{"$f":"'[1]Протокол ШЭ ВОШ по предмету'!K6","v":45},{"$f":"'[1]Протокол ШЭ ВОШ по предмету'!L6","v":"участник"},{"$f":"'[1]Протокол ШЭ ВОШ по предмету'!M6","v":"нет"},{"$f":"'[1]Протокол ШЭ ВОШ по предмету'!N6","v":"Катасонова Наталья Маратовна"},{"$f":"'[1]Протокол ШЭ ВОШ по предмету'!O6","v":"Муниципальное бюджетное общеобразовательное учреждение \"Средняя общеобразовательная школа № 12 с углубленным изучением отдельных предметов\"\" Нижнекамского муниципального района Республики Татарстан\""}]
[6,{"$f":"'[1]Протокол ШЭ ВОШ по предмету'!B7","v":"Басайлов"},{"$f":"'[1]Протокол ШЭ ВОШ по предмету'!C7","v":"Умар"},{"$f":"'[1]Протокол ШЭ ВОШ по предмету'!D7","v":"Талантбекович"},{"$f":"'[1]Протокол ШЭ ВОШ по предмету'!E7","v":"2012-01-30"},{"$f":"'[1]Протокол ШЭ ВОШ по предмету'!F7","v":"М"},"нет",4,4,{"$f":"'[1]Протокол ШЭ ВОШ по предмету'!J7","v":20},{"$f":"'[1]Протокол ШЭ ВОШ по предмету'!K7","v":45},{"$f":"'[1]Протокол ШЭ ВОШ по предмету'!L7","v":"участник"},{"$f":"'[1]Протокол ШЭ ВОШ по предмету'!M7","v":"нет"},{"$f":"'[1]Протокол ШЭ ВОШ по предмету'!N7","v":"Катасонова Наталья Маратовна"},{"$f":"'[1]Протокол ШЭ ВОШ по предмету'!O7","v":"Муниципальное бюджетное общеобразовательное учреждение \"Средняя общеобразовательная школа № 12 с углубленным изучением отдельных предметов\"\" Нижнекамского муниципального района Республики Татарстан\""}]
[7,{"$f":"'[1]Протокол ШЭ ВОШ по предмету'!B8","v":"Галаутдинов "},{"$f":"'[1]Протокол ШЭ ВОШ по предмету'!C8","v":"Айрат"},{"$f":"'[1]Протокол ШЭ ВОШ по предмету'!D8","v":"Ленарович"},{"$f":"'[1]Протокол ШЭ ВОШ по предмету'!E8","v":"2012-10-02"},{"$f":"'[1]Протокол ШЭ ВОШ по предмету'!F8","v":"М"},"нет",4,4,{"$f":"'[1]Протокол ШЭ ВОШ по предмету'!J8","v":14},{"$f":"'[1]Протокол ШЭ ВОШ по предмету'!K8","v":45},{"$f":"'[1]Протокол ШЭ ВОШ по предмету'!L8","v":"участник"},{"$f":"'[1]Протокол ШЭ ВОШ по предмету'!M8","v":"нет"},{"$f":"'[1]Протокол ШЭ ВОШ по предмету'!N8","v":"Катасонова Наталья Маратовна"},{"$f":"'[1]Протокол ШЭ ВОШ по предмету'!O8","v":"Муниципальное бюджетное общеобразовательное учреждение \"Средняя общеобразовательная школа № 12 с углубленным изучением отдельных предметов\"\" Нижнекамского муниципального района Республики Татарстан\""}]
[8,{"$f":"'[1]Протокол ШЭ ВОШ по предмету'!B9","v":"Давлетшина"},{"$f":"'[1]Протокол ШЭ ВОШ по предмету'!C9","v":"Динара"},{"$f":"'[1]Протокол ШЭ ВОШ по предмету'!D9","v":"Ринатовна"},{"$f":"'[1]Протокол ШЭ ВОШ по предмету'!E9","v":"2012-10-19"},{"$f":"'[1]Протокол ШЭ ВОШ по предмету'!F9","v":"Ж"},"нет",4,4,{"$f":"'[1]Протокол ШЭ ВОШ по предмету'!J9","v":13},{"$f":"'[1]Протокол ШЭ ВОШ по предмету'!K9","v":45},{"$f":"'[1]Протокол ШЭ ВОШ по предмету'!L9","v":"участник"},{"$f":"'[1]Протокол ШЭ ВОШ по предмету'!M9","v":"нет"},{"$f":"'[1]Протокол ШЭ ВОШ по предмету'!N9","v":"Катасонова Наталья Маратовна"},{"$f":"'[1]Протокол ШЭ ВОШ по предмету'!O9","v":"Муниципальное бюджетное общеобразовательное учреждение \"Средняя общеобразовательная школа № 12 с углубленным изучением отдельных предметов\"\" Нижнекамского муниципального района Республики Татарстан\""}]
[9,{"$f":"'[1]Протокол ШЭ ВОШ по предмету'!B10","v":"Корнеев"},{"$f":"'[1]Протокол ШЭ ВОШ по предмету'!C10","v":"Амир"},{"$f":"'[1]Протокол ШЭ ВОШ по предмету'!D10","v":"Романович"},{"$f":"'[1]Протокол ШЭ ВОШ по предмету'!E10","v":"2012-07-30"},{"$f":"'[1]Протокол ШЭ ВОШ по предмету'!F10","v":"М"},"нет",4,4,{"$f":"'[1]Протокол ШЭ ВОШ по предмету'!J10","v":10},{"$f":"'[1]Протокол ШЭ ВОШ по предмету'!K10","v":45},{"$f":"'[1]Протокол ШЭ ВОШ по предмету'!L10","v":"участник"},{"$f":"'[1]Протокол ШЭ ВОШ по предмету'!M10","v":"нет"},{"$f":"'[1]Протокол ШЭ ВОШ по предмету'!N10","v":"Катасонова Наталья Маратовна"},{"$f":"'[1]Протокол ШЭ ВОШ по предмету'!O10","v":"Муниципальное бюджетное общеобразовательное учреждение \"Средняя общеобразовательная школа № 12 с углубленным изучением отдельных предметов\"\" Нижнекамского муниципального района Республики Татарстан\""}]
[10,{"$f":"'[1]Протокол ШЭ ВОШ по предмету'!B11","v":"Патрикеев "},{"$f":"'[1]Протокол ШЭ ВОШ по предмету'!C11","v":"Данил"},{"$f":"'[1]Протокол ШЭ ВОШ по предмету'!D11","v":"Вячеславович"},{"$f":"'[1]Протокол ШЭ ВОШ по предмету'!E11","v":"2012-10-01"},{"$f":"'[1]Протокол ШЭ ВОШ по предмету'!F11","v":"М"},"нет",4,4,{"$f":"'[1]Протокол ШЭ ВОШ по предмету'!J11","v":15},{"$f":"'[1]Протокол ШЭ ВОШ по предмету'!K11","v":45},{"$f":"'[1]Протокол ШЭ ВОШ по предмету'!L11","v":"участник"},{"$f":"'[1]Протокол ШЭ ВОШ по предмету'!M11","v":"нет"},{"$f":"'[1]Протокол ШЭ ВОШ по предмету'!N11","v":"Катасонова Наталья Маратовна"},{"$f":"'[1]Протокол ШЭ ВОШ по предмету'!O11","v":"Муниципальное бюджетное общеобразовательное учреждение \"Средняя общеобразовательная школа № 12 с углубленным изучением отдельных предметов\"\" Нижнекамского муниципального района Республики Татарстан\""}]
[11,{"$f":"'[1]Протокол ШЭ ВОШ по предмету'!B12","v":"Восканян"},{"$f":"'[1]Протокол ШЭ ВОШ по предмету'!C12","v":"Овик"},{"$f":"'[1]Протокол ШЭ ВОШ по предмету'!D12","v":"Эдгарович"},{"$f":"'[1]Протокол ШЭ ВОШ по предмету'!E12","v":"2011-04-20"},{"$f":"'[1]Протокол ШЭ ВОШ по предмету'!F12","v":"М"},"нет",5,5,{"$f":"'[1]Протокол ШЭ ВОШ по предмету'!J12","v":15},{"$f":"'[1]Протокол ШЭ ВОШ по предмету'!K12","v":53},{"$f":"'[1]Протокол ШЭ ВОШ по предмету'!L12","v":"участник"},{"$f":"'[1]Протокол ШЭ ВОШ по предмету'!M12","v":"нет"},{"$f":"'[1]Протокол ШЭ ВОШ по предмету'!N12","v":"Катасонова Наталья Маратовна"},{"$f":"'[1]Протокол ШЭ ВОШ по предмету'!O12","v":"Муниципальное бюджетное общеобразовательное учреждение \"Средняя общеобразовательная школа № 12 с углубленным изучением отдельных предметов\"\" Нижнекамского муниципального района Республики Татарстан\""}]
[12,{"$f":"'[1]Протокол ШЭ ВОШ по предмету'!B13","v":"Машинина"},{"$f":"'[1]Протокол ШЭ ВОШ по предмету'!C13","v":"Юлия"},{"$f":"'[1]Протокол ШЭ ВОШ по предмету'!D13","v":"Юрьевна"},{"$f":"'[1]Протокол ШЭ ВОШ по предмету'!E13","v":"2011-02-11"},{"$f":"'[1]Протокол ШЭ ВОШ по предмету'!F13","v":"Ж"},"нет",5,5,{"$f":"'[1]Протокол ШЭ ВОШ по предмету'!J13","v":20},{"$f":"'[1]Протокол ШЭ ВОШ по предмету'!K13","v":53},{"$f":"'[1]Протокол ШЭ ВОШ по предмету'!L13","v":"участник"},{"$f":"'[1]Протокол ШЭ ВОШ по предмету'!M13","v":"нет"},{"$f":"'[1]Протокол ШЭ ВОШ по предмету'!N13","v":"Катасонова Наталья Маратовна"},{"$f":"'[1]Протокол ШЭ ВОШ по предмету'!O13","v":"Муниципальное бюджетное общеобразовательное учреждение \"Средняя общеобразовательная школа № 12 с углубленным изучением отдельных предметов\"\" Нижнекамского муниципального района Республики Татарстан\""}]
[13,{"$f":"'[1]Протокол ШЭ ВОШ по предмету'!B14","v":"Титов "},{"$f":"'[1]Протокол ШЭ ВОШ по предмету'!C14","v":"Егор "},{"$f":"'[1]Протокол ШЭ ВОШ по предмету'!D14","v":"Леонтьевтич"},{"$f":"'[1]Протокол ШЭ ВОШ по предмету'!E14","v":"2011-04-27"},{"$f":"'[1]Протокол ШЭ ВОШ по предмету'!F14","v":"М"},"нет",5,5,{"$f":"'[1]Протокол ШЭ ВОШ по предмету'!J14","v":25},{"$f":"'[1]Протокол ШЭ ВОШ по предмету'!K14","v":53},{"$f":"'[1]Протокол ШЭ ВОШ по предмету'!L14","v":"участник"},{"$f":"'[1]Протокол ШЭ ВОШ по предмету'!M14","v":"нет"},{"$f":"'[1]Протокол ШЭ ВОШ по предмету'!N14","v":"Тартмина Лидия Михайловна"},{"$f":"'[1]Протокол ШЭ ВОШ по предмету'!O14","v":"Муниципальное бюджетное общеобразовательное учреждение \"Средняя общеобразовательная школа № 12 с углубленным изучением отдельных предметов\"\" Нижнекамского муниципального района Республики Татарстан\""}]
[14,{"$f":"'[1]Протокол ШЭ ВОШ по предмету'!B15","v":"Пашанина"},{"$f":"'[1]Протокол ШЭ ВОШ по предмету'!C15","v":"Светлана"},{"$f":"'[1]Протокол ШЭ ВОШ по предмету'!D15","v":"Александровна"},{"$f":"'[1]Протокол ШЭ ВОШ по предмету'!E15","v":"2011-02-13"},{"$f":"'[1]Протокол ШЭ ВОШ по предмету'!F15","v":"Ж"},"нет",5,5,{"$f":"'[1]Протокол ШЭ ВОШ по предмету'!J15","v":19},{"$f":"'[1]Протокол ШЭ ВОШ по предмету'!K15","v":53},{"$f":"'[1]Протокол ШЭ ВОШ по предмету'!L15","v":"участник"},{"$f":"'[1]Протокол ШЭ ВОШ по предмету'!M15","v":"нет"},{"$f":"'[1]Протокол ШЭ ВОШ по предмету'!N15","v":"Тартмина Лидия Михайловна"},{"$f":"'[1]Протокол ШЭ ВОШ по предмету'!O15","v":"Муниципальное бюджетное общеобразовательное учреждение \"Средняя общеобразовательная школа № 12 с углубленным изучением отдельных предметов\"\" Нижнекамского муниципального района Республики Татарстан\""}]
[15,{"$f":"'[1]Протокол ШЭ ВОШ по предмету'!B16","v":"Новичков "},{"$f":"'[1]Протокол ШЭ ВОШ по предмету'!C16","v":"Константин"},{"$f":"'[1]Протокол ШЭ ВОШ по предмету'!D16","v":"Алексеевич"},{"$f":"'[1]Протокол ШЭ ВОШ по предмету'!E16","v":"2011-06-08"},{"$f":"'[1]Протокол ШЭ ВОШ по предмету'!F16","v":"М"},"нет",5,5,{"$f":"'[1]Протокол ШЭ ВОШ по предмету'!J16","v":18},{"$f":"'[1]Протокол ШЭ ВОШ по предмету'!K16","v":53},{"$f":"'[1]Протокол ШЭ ВОШ по предмету'!L16","v":"участник"},{"$f":"'[1]Протокол ШЭ ВОШ по предмету'!M16","v":"нет"},{"$f":"'[1]Протокол ШЭ ВОШ по предмету'!N16","v":"Катасонова Наталья Маратовна"},{"$f":"'[1]Протокол ШЭ ВОШ по предмету'!O16","v":"Муниципальное бюджетное общеобразовательное учреждение \"Средняя общеобразовательная школа № 12 с углубленным изучением отдельных предметов\"\" Нижнекамского муниципального района Республики Татарстан\""}]
[16,{"$f":"'[1]Протокол ШЭ ВОШ по предмету'!B17","v":"Еркина "},{"$f":"'[1]Протокол ШЭ ВОШ по предмету'!C17","v":"Кристина "},{"$f":"'[1]Протокол ШЭ ВОШ по предмету'!D17","v":"Юрьевна"},{"$f":"'[1]Протокол ШЭ ВОШ по предмету'!E17","v":"2011-06-19"},{"$f":"'[1]Протокол ШЭ ВОШ по предмету'!F17","v":"Ж"},"нет",5,5,{"$f":"'[1]Протокол ШЭ ВОШ по предмету'!J17","v":10},{"$f":"'[1]Протокол ШЭ ВОШ по предмету'!K17","v":53},{"$f":"'[1]Протокол ШЭ ВОШ по предмету'!L17","v":"участник"},{"$f":"'[1]Протокол ШЭ ВОШ по предмету'!M17","v":"нет"},{"$f":"'[1]Протокол ШЭ ВОШ по предмету'!N17","v":"Катасонова Наталья Маратовна"},{"$f":"'[1]Протокол ШЭ ВОШ по предмету'!O17","v":"Муниципальное бюджетное общеобразовательное учреждение \"Средняя общеобразовательная школа № 12 с углубленным изучением отдельных предметов\"\" Нижнекамского муниципального района Республики Татарстан\""}]
[17,{"$f":"'[1]Протокол ШЭ ВОШ по предмету'!B18","v":"Синицына"},{"$f":"'[1]Протокол ШЭ ВОШ по предмету'!C18","v":"Ксения"},{"$f":"'[1]Протокол ШЭ ВОШ по предмету'!D18","v":"Борисовна"},{"$f":"'[1]Протокол ШЭ ВОШ по предмету'!E18","v":"2010-12-30"},{"$f":"'[1]Протокол ШЭ ВОШ по предмету'!F18","v":"Ж"},"нет",5,5,{"$f":"'[1]Протокол ШЭ ВОШ по предмету'!J18","v":12},{"$f":"'[1]Протокол ШЭ ВОШ по предмету'!K18","v":53},{"$f":"'[1]Протокол ШЭ ВОШ по предмету'!L18","v":"участник"},{"$f":"'[1]Протокол ШЭ ВОШ по предмету'!M18","v":"нет"},{"$f":"'[1]Протокол ШЭ ВОШ по предмету'!N18","v":"Тартмина Лидия Михайловна"},{"$f":"'[1]Протокол ШЭ ВОШ по предмету'!O18","v":"Муниципальное бюджетное общеобразовательное учреждение \"Средняя общеобразовательная школа № 12 с углубленным изучением отдельных предметов\"\" Нижнекамского муниципального района Республики Татарстан\""}]
[18,{"$f":"'[1]Протокол ШЭ ВОШ по предмету'!B19","v":"Шакирханов "},{"$f":"'[1]Протокол ШЭ ВОШ по предмету'!C19","v":"Аскар"},{"$f":"'[1]Протокол ШЭ ВОШ по предмету'!D19","v":"Айдарович"},{"$f":"'[1]Протокол ШЭ ВОШ по предмету'!E19","v":"2011-07-08"},{"$f":"'[1]Протокол ШЭ ВОШ по предмету'!F19","v":"М"},"нет",5,5,{"$f":"'[1]Протокол ШЭ ВОШ по предмету'!J19","v":15},{"$f":"'[1]Протокол ШЭ ВОШ по предмету'!K19","v":53},{"$f":"'[1]Протокол ШЭ ВОШ по предмету'!L19","v":"участник"},{"$f":"'[1]Протокол ШЭ ВОШ по предмету'!M19","v":"нет"},{"$f":"'[1]Протокол ШЭ ВОШ по предмету'!N19","v":"Тартмина Лидия Михайловна"},{"$f":"'[1]Протокол ШЭ ВОШ по предмету'!O19","v":"Муниципальное бюджетное общеобразовательное учреждение \"Средняя общеобразовательная школа № 12 с углубленным изучением отдельных предметов\"\" Нижнекамского муниципального района Республики Татарстан\""}]
[19,{"$f":"'[1]Протокол ШЭ ВОШ по предмету'!B20","v":"Соболев"},{"$f":"'[1]Протокол ШЭ ВОШ по предмету'!C20","v":"Владислав"},{"$f":"'[1]Протокол ШЭ ВОШ по предмету'!D20","v":"Андреевич"},{"$f":"'[1]Протокол ШЭ ВОШ по предмету'!E20","v":"2011-10-21"},{"$f":"'[1]Протокол ШЭ ВОШ по предмету'!F20","v":"М"},"нет",5,5,{"$f":"'[1]Протокол ШЭ ВОШ по предмету'!J20","v":17},{"$f":"'[1]Протокол ШЭ ВОШ по предмету'!K20","v":53},{"$f":"'[1]Протокол ШЭ ВОШ по предмету'!L20","v":"участник"},{"$f":"'[1]Протокол ШЭ ВОШ по предмету'!M20","v":"нет"},{"$f":"'[1]Протокол ШЭ ВОШ по предмету'!N20","v":"Катасонова Наталья Маратовна"},{"$f":"'[1]Протокол ШЭ ВОШ по предмету'!O20","v":"Муниципальное бюджетное общеобразовательное учреждение \"Средняя общеобразовательная школа № 12 с углубленным изучением отдельных предметов\"\" Нижнекамского муниципального района Республики Татарстан\""}]
[20,{"$f":"'[1]Протокол ШЭ ВОШ по предмету'!B21","v":"Паркко "},{"$f":"'[1]Протокол ШЭ ВОШ по предмету'!C21","v":"София"},{"$f":"'[1]Протокол ШЭ ВОШ по предмету'!D21","v":"Алексеевна"},{"$f":"'[1]Протокол ШЭ ВОШ по предмету'!E21","v":"2011-07-13"},{"$f":"'[1]Протокол ШЭ ВОШ по предмету'!F21","v":"Ж"},"нет",5,5,{"$f":"'[1]Протокол ШЭ ВОШ по предмету'!J21","v":16},{"$f":"'[1]Протокол ШЭ ВОШ по предмету'!K21","v":53},{"$f":"'[1]Протокол ШЭ ВОШ по предмету'!L21","v":"участник"},{"$f":"'[1]Протокол ШЭ ВОШ по предмету'!M21","v":"нет"},{"$f":"'[1]Протокол ШЭ ВОШ по предмету'!N21","v":"Катасонова Наталья Маратовна"},{"$f":"'[1]Протокол ШЭ ВОШ по предмету'!O21","v":"Муниципальное бюджетное общеобразовательное учреждение \"Средняя общеобразовательная школа № 12 с углубленным изучением отдельных предметов\"\" Нижнекамского муниципального района Республики Татарстан\""}]
[21,{"$f":"'[1]Протокол ШЭ ВОШ по предмету'!B22","v":"Батинов"},{"$f":"'[1]Протокол ШЭ ВОШ по предмету'!C22","v":"Николай"},{"$f":"'[1]Протокол ШЭ ВОШ по предмету'!D22","v":"Анатольевич"},{"$f":"'[1]Протокол ШЭ ВОШ по предмету'!E22","v":"21.01.2010"},{"$f":"'[1]Протокол ШЭ ВОШ по предмету'!F22","v":"М"},"нет",6,6,{"$f":"'[1]Протокол ШЭ ВОШ по предмету'!J22","v":20},{"$f":"'[1]Протокол ШЭ ВОШ по предмету'!K22","v":53},{"$f":"'[1]Протокол ШЭ ВОШ по предмету'!L22","v":"участник"},{"$f":"'[1]Протокол ШЭ ВОШ по предмету'!M22","v":"нет"},{"$f":"'[1]Протокол ШЭ ВОШ по предмету'!N22","v":"Абдуллина РанизаРазимовна"},{"$f":"'[1]Протокол ШЭ ВОШ по предмету'!O22","v":"Муниципальное бюджетное общеобразовательное учреждение \"Средняя общеобразовательная школа № 12 с углубленным изучением отдельных предметов\"\" Нижнекамского муниципального района Республики Татарстан\""}]
[22,{"$f":"'[1]Протокол ШЭ ВОШ по предмету'!B23","v":"Васильева"},{"$f":"'[1]Протокол ШЭ ВОШ по предмету'!C23","v":"Диана"},{"$f":"'[1]Протокол ШЭ ВОШ по предмету'!D23","v":"Андреевна"},{"$f":"'[1]Протокол ШЭ ВОШ по предмету'!E23","v":"2010-06-14"},{"$f":"'[1]Протокол ШЭ ВОШ по предмету'!F23","v":"Ж"},"нет",6,6,{"$f":"'[1]Протокол ШЭ ВОШ по предмету'!J23","v":25},{"$f":"'[1]Протокол ШЭ ВОШ по предмету'!K23","v":53},{"$f":"'[1]Протокол ШЭ ВОШ по предмету'!L23","v":"участник"},{"$f":"'[1]Протокол ШЭ ВОШ по предмету'!M23","v":"нет"},{"$f":"'[1]Протокол ШЭ ВОШ по предмету'!N23","v":"Абдуллина РанизаРазимовна"},{"$f":"'[1]Протокол ШЭ ВОШ по предмету'!O23","v":"Муниципальное бюджетное общеобразовательное учреждение \"Средняя общеобразовательная школа № 12 с углубленным изучением отдельных предметов\"\" Нижнекамского муниципального района Республики Татарстан\""}]
[23,{"$f":"'[1]Протокол ШЭ ВОШ по предмету'!B24","v":"Ислаев"},{"$f":"'[1]Протокол ШЭ ВОШ по предмету'!C24","v":"Вячеслав"},{"$f":"'[1]Протокол ШЭ ВОШ по предмету'!D24","v":"Геннадьевич"},{"$f":"'[1]Протокол ШЭ ВОШ по предмету'!E24","v":"09.12.2009"},{"$f":"'[1]Протокол ШЭ ВОШ по предмету'!F24","v":"М"},"нет",6,6,{"$f":"'[1]Протокол ШЭ ВОШ по предмету'!J24","v":23},{"$f":"'[1]Протокол ШЭ ВОШ по предмету'!K24","v":53},{"$f":"'[1]Протокол ШЭ ВОШ по предмету'!L24","v":"участник"},{"$f":"'[1]Протокол ШЭ ВОШ по предмету'!M24","v":"нет"},{"$f":"'[1]Протокол ШЭ ВОШ по предмету'!N24","v":"Абдуллина РанизаРазимовна"},{"$f":"'[1]Протокол ШЭ ВОШ по предмету'!O24","v":"Муниципальное бюджетное общеобразовательное учреждение \"Средняя общеобразовательная школа № 12 с углубленным изучением отдельных предметов\"\" Нижнекамского муниципального района Республики Татарстан\""}]
[24,{"$f":"'[1]Протокол ШЭ ВОШ по предмету'!B25","v":"Красильникова"},{"$f":"'[1]Протокол ШЭ ВОШ по предмету'!C25","v":"Ксения"},{"$f":"'[1]Протокол ШЭ ВОШ по предмету'!D25","v":"Денисовна"},{"$f":"'[1]Протокол ШЭ ВОШ по предмету'!E25","v":"11.02.2010"},{"$f":"'[1]Протокол ШЭ ВОШ по предмету'!F25","v":"Ж"},"нет",6,6,{"$f":"'[1]Протокол ШЭ ВОШ по предмету'!J25","v":26},{"$f":"'[1]Протокол ШЭ ВОШ по предмету'!K25","v":53},{"$f":"'[1]Протокол ШЭ ВОШ по предмету'!L25","v":"участник"},{"$f":"'[1]Протокол ШЭ ВОШ по предмету'!M25","v":"нет"},{"$f":"'[1]Протокол ШЭ ВОШ по предмету'!N25","v":"Абдуллина РанизаРазимовна"},{"$f":"'[1]Протокол ШЭ ВОШ по предмету'!O25","v":"Муниципальное бюджетное общеобразовательное учреждение \"Средняя общеобразовательная школа № 12 с углубленным изучением отдельных предметов\"\" Нижнекамского муниципального района Республики Татарстан\""}]
[25,{"$f":"'[1]Протокол ШЭ ВОШ по предмету'!B26","v":"Старикова"},{"$f":"'[1]Протокол ШЭ ВОШ по предмету'!C26","v":"Карина"},{"$f":"'[1]Протокол ШЭ ВОШ по предмету'!D26","v":"Сергеевна"},{"$f":"'[1]Протокол ШЭ ВОШ по предмету'!E26","v":"04.11.2010"},{"$f":"'[1]Протокол ШЭ ВОШ по предмету'!F26","v":"Ж"},"нет",6,6,{"$f":"'[1]Протокол ШЭ ВОШ по предмету'!J26","v":35},{"$f":"'[1]Протокол ШЭ ВОШ по предмету'!K26","v":53},{"$f":"'[1]Протокол ШЭ ВОШ по предмету'!L26","v":"участник"},{"$f":"'[1]Протокол ШЭ ВОШ по предмету'!M26","v":"нет"},{"$f":"'[1]Протокол ШЭ ВОШ по предмету'!N26","v":"Абдуллина РанизаРазимовна"},{"$f":"'[1]Протокол ШЭ ВОШ по предмету'!O26","v":"Муниципальное бюджетное общеобразовательное учреждение \"Средняя общеобразовательная школа № 12 с углубленным изучением отдельных предметов\"\" Нижнекамского муниципального района Республики Татарстан\""}]
[26,{"$f":"'[1]Протокол ШЭ ВОШ по предмету'!B27","v":"Вафина"},{"$f":"'[1]Протокол ШЭ ВОШ по предмету'!C27","v":"Ангелина"},{"$f":"'[1]Протокол ШЭ ВОШ по предмету'!D27","v":"Владиславовна"},{"$f":"'[1]Протокол ШЭ ВОШ по предмету'!E27","v":"28.06.2010"},{"$f":"'[1]Протокол ШЭ ВОШ по предмету'!F27","v":"Ж"},"нет",6,6,{"$f":"'[1]Протокол ШЭ ВОШ по предмету'!J27","v":30},{"$f":"'[1]Протокол ШЭ ВОШ по предмету'!K27","v":53},{"$f":"'[1]Протокол ШЭ ВОШ по предмету'!L27","v":"участник"},{"$f":"'[1]Протокол ШЭ ВОШ по предмету'!M27","v":"нет"},{"$f":"'[1]Протокол ШЭ ВОШ по предмету'!N27","v":"Катасонова Наталья Маратовна"},{"$f":"'[1]Протокол ШЭ ВОШ по предмету'!O27","v":"Муниципальное бюджетное общеобразовательное учреждение \"Средняя общеобразовательная школа № 12 с углубленным изучением отдельных предметов\"\" Нижнекамского муниципального района Республики Татарстан\""}]
[27,{"$f":"'[1]Протокол ШЭ ВОШ по предмету'!B28","v":"Константинова"},{"$f":"'[1]Протокол ШЭ ВОШ по предмету'!C28","v":"Яна"},{"$f":"'[1]Протокол ШЭ ВОШ по предмету'!D28","v":"Владиславовна"},{"$f":"'[1]Протокол ШЭ ВОШ по предмету'!E28","v":"2010-02-08"},{"$f":"'[1]Протокол ШЭ ВОШ по предмету'!F28","v":"Ж"},"нет",6,6,{"$f":"'[1]Протокол ШЭ ВОШ по предмету'!J28","v":21},{"$f":"'[1]Протокол ШЭ ВОШ по предмету'!K28","v":53},{"$f":"'[1]Протокол ШЭ ВОШ по предмету'!L28","v":"участник"},{"$f":"'[1]Протокол ШЭ ВОШ по предмету'!M28","v":"нет"},{"$f":"'[1]Протокол ШЭ ВОШ по предмету'!N28","v":"Катасонова Наталья Маратовна"},{"$f":"'[1]Протокол ШЭ ВОШ по предмету'!O28","v":"Муниципальное бюджетное общеобразовательное учреждение \"Средняя общеобразовательная школа № 12 с углубленным изучением отдельных предметов\"\" Нижнекамского муниципального района Республики Татарстан\""}]
[28,{"$f":"'[1]Протокол ШЭ ВОШ по предмету'!B29","v":"Кагирова"},{"$f":"'[1]Протокол ШЭ ВОШ по предмету'!C29","v":"Азалия"},{"$f":"'[1]Протокол ШЭ ВОШ по предмету'!D29","v":"Хафизовна"},{"$f":"'[1]Протокол ШЭ ВОШ по предмету'!E29","v":"26.01.2010"},{"$f":"'[1]Протокол ШЭ ВОШ по предмету'!F29","v":"Ж"},"нет",6,6,{"$f":"'[1]Протокол ШЭ ВОШ по предмету'!J29","v":30},{"$f":"'[1]Протокол ШЭ ВОШ по предмету'!K29","v":53},{"$f":"'[1]Протокол ШЭ ВОШ по предмету'!L29","v":"участник"},{"$f":"'[1]Протокол ШЭ ВОШ по предмету'!M29","v":"нет"},{"$f":"'[1]Протокол ШЭ ВОШ по предмету'!N29","v":"Катасонова Наталья Маратовна"},{"$f":"'[1]Протокол ШЭ ВОШ по предмету'!O29","v":"Муниципальное бюджетное общеобразовательное учреждение \"Средняя общеобразовательная школа № 12 с углубленным изучением отдельных предметов\"\" Нижнекамского муниципального района Республики Татарстан\""}]
[29,{"$f":"'[1]Протокол ШЭ ВОШ по предмету'!B30","v":"Мухаметханова "},{"$f":"'[1]Протокол ШЭ ВОШ по предмету'!C30","v":"Альбина"},{"$f":"'[1]Протокол ШЭ ВОШ по предмету'!D30","v":"Альфредовна"},{"$f":"'[1]Протокол ШЭ ВОШ по предмету'!E30","v":"2010-12-23"},{"$f":"'[1]Протокол ШЭ ВОШ по предмету'!F30","v":"Ж"},"нет",6,6,{"$f":"'[1]Протокол ШЭ ВОШ по предмету'!J30","v":24},{"$f":"'[1]Протокол ШЭ ВОШ по предмету'!K30","v":53},{"$f":"'[1]Протокол ШЭ ВОШ по предмету'!L30","v":"участник"},{"$f":"'[1]Протокол ШЭ ВОШ по предмету'!M30","v":"нет"},{"$f":"'[1]Протокол ШЭ ВОШ по предмету'!N30","v":"Катасонова Наталья Маратовна"},{"$f":"'[1]Протокол ШЭ ВОШ по предмету'!O30","v":"Муниципальное бюджетное общеобразовательное учреждение \"Средняя общеобразовательная школа № 12 с углубленным изучением отдельных предметов\"\" Нижнекамского муниципального района Республики Татарстан\""}]
[30,{"$f":"'[1]Протокол ШЭ ВОШ по предмету'!B31","v":"Надырова"},{"$f":"'[1]Протокол ШЭ ВОШ по предмету'!C31","v":"Амелия"},{"$f":"'[1]Протокол ШЭ ВОШ по предмету'!D31","v":"Рафаэлевна"},{"$f":"'[1]Протокол ШЭ ВОШ по предмету'!E31","v":"27.01.2010"},{"$f":"'[1]Протокол ШЭ ВОШ по предмету'!F31","v":"Ж"},"нет",6,6,{"$f":"'[1]Протокол ШЭ ВОШ по предмету'!J31","v":25},{"$f":"'[1]Протокол ШЭ ВОШ по предмету'!K31","v":53},{"$f":"'[1]Протокол ШЭ ВОШ по предмету'!L31","v":"участник"},{"$f":"'[1]Протокол ШЭ ВОШ по предмету'!M31","v":"нет"},{"$f":"'[1]Протокол ШЭ ВОШ по предмету'!N31","v":"Катасонова Наталья Маратовна"},{"$f":"'[1]Протокол ШЭ ВОШ по предмету'!O31","v":"Муниципальное бюджетное общеобразовательное учреждение \"Средняя общеобразовательная школа № 12 с углубленным изучением отдельных предметов\"\" Нижнекамского муниципального района Республики Татарстан\""}]
[31,{"$f":"'[1]Протокол ШЭ ВОШ по предмету'!B32","v":"Круподеров"},{"$f":"'[1]Протокол ШЭ ВОШ по предмету'!C32","v":"Владислав"},{"$f":"'[1]Протокол ШЭ ВОШ по предмету'!D32","v":"Андреевич"},{"$f":"'[1]Протокол ШЭ ВОШ по предмету'!E32","v":"2009-06-11"},{"$f":"'[1]Протокол ШЭ ВОШ по предмету'!F32","v":"М"},"нет",7,7,{"$f":"'[1]Протокол ШЭ ВОШ по предмету'!J32","v":27},{"$f":"'[1]Протокол ШЭ ВОШ по предмету'!K32","v":70},{"$f":"'[1]Протокол ШЭ ВОШ по предмету'!L32","v":"участник"},{"$f":"'[1]Протокол ШЭ ВОШ по предмету'!M32","v":"нет"},{"$f":"'[1]Протокол ШЭ ВОШ по предмету'!N32","v":"Тартмина Лидия Михайловна"},{"$f":"'[1]Протокол ШЭ ВОШ по предмету'!O32","v":"Муниципальное бюджетное общеобразовательное учреждение \"Средняя общеобразовательная школа № 12 с углубленным изучением отдельных предметов\"\" Нижнекамского муниципального района Республики Татарстан\""}]
[32,{"$f":"'[1]Протокол ШЭ ВОШ по предмету'!B33","v":"Закирова"},{"$f":"'[1]Протокол ШЭ ВОШ по предмету'!C33","v":"Анастасия"},{"$f":"'[1]Протокол ШЭ ВОШ по предмету'!D33","v":"Михайловна"},{"$f":"'[1]Протокол ШЭ ВОШ по предмету'!E33","v":"2009-02-11"},{"$f":"'[1]Протокол ШЭ ВОШ по предмету'!F33","v":"Ж"},"нет",7,7,{"$f":"'[1]Протокол ШЭ ВОШ по предмету'!J33","v":13},{"$f":"'[1]Протокол ШЭ ВОШ по предмету'!K33","v":70},{"$f":"'[1]Протокол ШЭ ВОШ по предмету'!L33","v":"участник"},{"$f":"'[1]Протокол ШЭ ВОШ по предмету'!M33","v":"нет"},{"$f":"'[1]Протокол ШЭ ВОШ по предмету'!N33","v":"Катасонова Наталья Маратовна"},{"$f":"'[1]Протокол ШЭ ВОШ по предмету'!O33","v":"Муниципальное бюджетное общеобразовательное учреждение \"Средняя общеобразовательная школа № 12 с углубленным изучением отдельных предметов\"\" Нижнекамского муниципального района Республики Татарстан\""}]
[33,{"$f":"'[1]Протокол ШЭ ВОШ по предмету'!B34","v":"Хасаншина"},{"$f":"'[1]Протокол ШЭ ВОШ по предмету'!C34","v":"Ульяна"},{"$f":"'[1]Протокол ШЭ ВОШ по предмету'!D34","v":"Рамилевна"},{"$f":"'[1]Протокол ШЭ ВОШ по предмету'!E34","v":"29.-6.2009"},{"$f":"'[1]Протокол ШЭ ВОШ по предмету'!F34","v":"Ж"},"нет",7,7,{"$f":"'[1]Протокол ШЭ ВОШ по предмету'!J34","v":16},{"$f":"'[1]Протокол ШЭ ВОШ по предмету'!K34","v":70},{"$f":"'[1]Протокол ШЭ ВОШ по предмету'!L34","v":"участник"},{"$f":"'[1]Протокол ШЭ ВОШ по предмету'!M34","v":"нет"},{"$f":"'[1]Протокол ШЭ ВОШ по предмету'!N34","v":"Катасонова Наталья Маратовна"},{"$f":"'[1]Протокол ШЭ ВОШ по предмету'!O34","v":"Муниципальное бюджетное общеобразовательное учреждение \"Средняя общеобразовательная школа № 12 с углубленным изучением отдельных предметов\"\" Нижнекамского муниципального района Республики Татарстан\""}]
[34,{"$f":"'[1]Протокол ШЭ ВОШ по предмету'!B35","v":"Миндубаева"},{"$f":"'[1]Протокол ШЭ ВОШ по предмету'!C35","v":"Эльвина"},{"$f":"'[1]Протокол ШЭ ВОШ по предмету'!D35","v":"Рамилевна"},{"$f":"'[1]Протокол ШЭ ВОШ по предмету'!E35","v":"11.10.2008"},{"$f":"'[1]Протокол ШЭ ВОШ по предмету'!F35","v":"Ж"},"нет",7,7,{"$f":"'[1]Протокол ШЭ ВОШ по предмету'!J35","v":19},{"$f":"'[1]Протокол ШЭ ВОШ по предмету'!K35","v":70},{"$f":"'[1]Протокол ШЭ ВОШ по предмету'!L35","v":"участник"},{"$f":"'[1]Протокол ШЭ ВОШ по предмету'!M35","v":"нет"},{"$f":"'[1]Протокол ШЭ ВОШ по предмету'!N35","v":"Тартмина Лидия Михайловна"},{"$f":"'[1]Протокол ШЭ ВОШ по предмету'!O35","v":"Муниципальное бюджетное общеобразовательное учреждение \"Средняя общеобразовательная школа № 12 с углубленным изучением отдельных предметов\"\" Нижнекамского муниципального района Республики Татарстан\""}]
[35,{"$f":"'[1]Протокол ШЭ ВОШ по предмету'!B36","v":"Осокина"},{"$f":"'[1]Протокол ШЭ ВОШ по предмету'!C36","v":"Анастасия"},{"$f":"'[1]Протокол ШЭ ВОШ по предмету'!D36","v":"Михайловна"},{"$f":"'[1]Протокол ШЭ ВОШ по предмету'!E36","v":"06.09.2009"},{"$f":"'[1]Протокол ШЭ ВОШ по предмету'!F36","v":"Ж"},"нет",7,7,{"$f":"'[1]Протокол ШЭ ВОШ по предмету'!J36","v":55},{"$f":"'[1]Протокол ШЭ ВОШ по предмету'!K36","v":70},{"$f":"'[1]Протокол ШЭ ВОШ по предмету'!L36","v":"победитель"},{"$f":"'[1]Протокол ШЭ ВОШ по предмету'!M36","v":"нет"},{"$f":"'[1]Протокол ШЭ ВОШ по предмету'!N36","v":"Тартмина Лидия Михайловна"},{"$f":"'[1]Протокол ШЭ ВОШ по предмету'!O36","v":"Муниципальное бюджетное общеобразовательное учреждение \"Средняя общеобразовательная школа № 12 с углубленным изучением отдельных предметов\"\" Нижнекамского муниципального района Республики Татарстан\""}]
[36,{"$f":"'[1]Протокол ШЭ ВОШ по предмету'!B37","v":"Рябова"},{"$f":"'[1]Протокол ШЭ ВОШ по предмету'!C37","v":"Маргарита"},{"$f":"'[1]Протокол ШЭ ВОШ по предмету'!D37","v":"Васильевна"},{"$f":"'[1]Протокол ШЭ ВОШ по предмету'!E37","v":"03.04.2009"},{"$f":"'[1]Протокол ШЭ ВОШ по предмету'!F37","v":"Ж"},"нет",7,7,{"$f":"'[1]Протокол ШЭ ВОШ по предмету'!J37","v":15},{"$f":"'[1]Протокол ШЭ ВОШ по предмету'!K37","v":70},{"$f":"'[1]Протокол ШЭ ВОШ по предмету'!L37","v":"участник"},{"$f":"'[1]Протокол ШЭ ВОШ по предмету'!M37","v":"нет"},{"$f":"'[1]Протокол ШЭ ВОШ по предмету'!N37","v":"Катасонова Наталья Маратовна"},{"$f":"'[1]Протокол ШЭ ВОШ по предмету'!O37","v":"Муниципальное бюджетное общеобразовательное учреждение \"Средняя общеобразовательная школа № 12 с углубленным изучением отдельных предметов\"\" Нижнекамского муниципального района Республики Татарстан\""}]
[37,{"$f":"'[1]Протокол ШЭ ВОШ по предмету'!B38","v":"Вакилов"},{"$f":"'[1]Протокол ШЭ ВОШ по предмету'!C38","v":"Айрат"},{"$f":"'[1]Протокол ШЭ ВОШ по предмету'!D38","v":"Рифатович"},{"$f":"'[1]Протокол ШЭ ВОШ по предмету'!E38","v":"2009-10-07"},{"$f":"'[1]Протокол ШЭ ВОШ по предмету'!F38","v":"М"},"нет",7,7,{"$f":"'[1]Протокол ШЭ ВОШ по предмету'!J38","v":7},{"$f":"'[1]Протокол ШЭ ВОШ по предмету'!K38","v":70},{"$f":"'[1]Протокол ШЭ ВОШ по предмету'!L38","v":"участник"},{"$f":"'[1]Протокол ШЭ ВОШ по предмету'!M38","v":"нет"},{"$f":"'[1]Протокол ШЭ ВОШ по предмету'!N38","v":"Тартмина Лидия Михайловна"},{"$f":"'[1]Протокол ШЭ ВОШ по предмету'!O38","v":"Муниципальное бюджетное общеобразовательное учреждение \"Средняя общеобразовательная школа № 12 с углубленным изучением отдельных предметов\"\" Нижнекамского муниципального района Республики Татарстан\""}]
[38,{"$f":"'[1]Протокол ШЭ ВОШ по предмету'!B39","v":"Харитонова"},{"$f":"'[1]Протокол ШЭ ВОШ по предмету'!C39","v":"Александра"},{"$f":"'[1]Протокол ШЭ ВОШ по предмету'!D39","v":"Михайловна"},{"$f":"'[1]Протокол ШЭ ВОШ по предмету'!E39","v":"2009-04-28"},{"$f":"'[1]Протокол ШЭ ВОШ по предмету'!F39","v":"Ж"},"нет",7,7,{"$f":"'[1]Протокол ШЭ ВОШ по предмету'!J39","v":23},{"$f":"'[1]Протокол ШЭ ВОШ по предмету'!K39","v":70},{"$f":"'[1]Протокол ШЭ ВОШ по предмету'!L39","v":"учвстник"},{"$f":"'[1]Протокол ШЭ ВОШ по предмету'!M39","v":"нет"},{"$f":"'[1]Протокол ШЭ ВОШ по предмету'!N39","v":"Тартмина Лидия Михайловна"},{"$f":"'[1]Протокол ШЭ ВОШ по предмету'!O39","v":"Муниципальное бюджетное общеобразовательное учреждение \"Средняя общеобразовательная школа № 12 с углубленным изучением отдельных предметов\"\" Нижнекамского муниципального района Республики Татарстан\""}]
[39,{"$f":"'[1]Протокол ШЭ ВОШ по предмету'!B40","v":"Маматов"},{"$f":"'[1]Протокол ШЭ ВОШ по предмету'!C40","v":"Ильсур"},{"$f":"'[1]Протокол ШЭ ВОШ по предмету'!D40","v":"Ленарович"},{"$f":"'[1]Протокол ШЭ ВОШ по предмету'!E40","v":"2009-09-21"},{"$f":"'[1]Протокол ШЭ ВОШ по предмету'!F40","v":"М"},"нет",7,7,{"$f":"'[1]Протокол ШЭ ВОШ по предмету'!J40","v":5},{"$f":"'[1]Протокол ШЭ ВОШ по предмету'!K40","v":70},{"$f":"'[1]Протокол ШЭ ВОШ по предмету'!L40","v":"участник"},{"$f":"'[1]Протокол ШЭ ВОШ по предмету'!M40","v":"нет"},{"$f":"'[1]Протокол ШЭ ВОШ по предмету'!N40","v":"Тартмина Лидия Михайловна"},{"$f":"'[1]Протокол ШЭ ВОШ по предмету'!O40","v":"Муниципальное бюджетное общеобразовательное учреждение \"Средняя общеобразовательная школа № 12 с углубленным изучением отдельных предметов\"\" Нижнекамского муниципального района Республики Татарстан\""}]
[40,{"$f":"'[1]Протокол ШЭ ВОШ по предмету'!B41","v":"Кузьмин"},{"$f":"'[1]Протокол ШЭ ВОШ по предмету'!C41","v":"Данил"},{"$f":"'[1]Протокол ШЭ ВОШ по предмету'!D41","v":"Васильевич"},{"$f":"'[1]Протокол ШЭ ВОШ по предмету'!E41","v":"11.01.2010"},{"$f":"'[1]Протокол ШЭ ВОШ по предмету'!F41","v":"М"},"нет",7,7,{"$f":"'[1]Протокол ШЭ ВОШ по предмету'!J41","v":10},{"$f":"'[1]Протокол ШЭ ВОШ по предмету'!K41","v":70},{"$f":"'[1]Протокол ШЭ ВОШ по предмету'!L41","v":"участник"},{"$f":"'[1]Протокол ШЭ ВОШ по предмету'!M41","v":"нет"},{"$f":"'[1]Протокол ШЭ ВОШ по предмету'!N41","v":"Тартмина Лидия Михайловна"},{"$f":"'[1]Протокол ШЭ ВОШ по предмету'!O41","v":"Муниципальное бюджетное общеобразовательное учреждение \"Средняя общеобразовательная школа № 12 с углубленным изучением отдельных предметов\"\" Нижнекамского муниципального района Республики Татарстан\""}]
[41,{"$f":"'[1]Протокол ШЭ ВОШ по предмету'!B42","v":"Алиев"},{"$f":"'[1]Протокол ШЭ ВОШ по предмету'!C42","v":"Раиль"},{"$f":"'[1]Протокол ШЭ ВОШ по предмету'!D42","v":"Ровшанович"},{"$f":"'[1]Протокол ШЭ ВОШ по предмету'!E42","v":"17.07.2008"},{"$f":"'[1]Протокол ШЭ ВОШ по предмету'!F42","v":"М"},"нет",8,8,{"$f":"'[1]Протокол ШЭ ВОШ по предмету'!J42","v":53},{"$f":"'[1]Протокол ШЭ ВОШ по предмету'!K42","v":70},{"$f":"'[1]Протокол ШЭ ВОШ по предмету'!L42","v":"победитель"},{"$f":"'[1]Протокол ШЭ ВОШ по предмету'!M42","v":"нет"},{"$f":"'[1]Протокол ШЭ ВОШ по предмету'!N42","v":"Тартмина Лидия Михайловна"},{"$f":"'[1]Протокол ШЭ ВОШ по предмету'!O42","v":"Муниципальное бюджетное общеобразовательное учреждение \"Средняя общеобразовательная школа № 12 с углубленным изучением отдельных предметов\"\" Нижнекамского муниципального района Республики Татарстан\""}]
[42,{"$f":"'[1]Протокол ШЭ ВОШ по предмету'!B43","v":"Афанасьева"},{"$f":"'[1]Протокол ШЭ ВОШ по предмету'!C43","v":"Татьяна"},{"$f":"'[1]Протокол ШЭ ВОШ по предмету'!D43","v":"Серггевна"},{"$f":"'[1]Протокол ШЭ ВОШ по предмету'!E43","v":"2008-07-01"},{"$f":"'[1]Протокол ШЭ ВОШ по предмету'!F43","v":"Ж"},"нет",8,8,{"$f":"'[1]Протокол ШЭ ВОШ по предмету'!J43","v":25},{"$f":"'[1]Протокол ШЭ ВОШ по предмету'!K43","v":70},{"$f":"'[1]Протокол ШЭ ВОШ по предмету'!L43","v":"участник"},{"$f":"'[1]Протокол ШЭ ВОШ по предмету'!M43","v":"нет"},{"$f":"'[1]Протокол ШЭ ВОШ по предмету'!N43","v":"Тартмина Лидия Михайловна"},{"$f":"'[1]Протокол ШЭ ВОШ по предмету'!O43","v":"Муниципальное бюджетное общеобразовательное учреждение \"Средняя общеобразовательная школа № 12 с углубленным изучением отдельных предметов\"\" Нижнекамского муниципального района Республики Татарстан\""}]
[43,{"$f":"'[1]Протокол ШЭ ВОШ по предмету'!B44","v":"Москвичев"},{"$f":"'[1]Протокол ШЭ ВОШ по предмету'!C44","v":"Дмитрий"},{"$f":"'[1]Протокол ШЭ ВОШ по предмету'!D44","v":"Павлович"},{"$f":"'[1]Протокол ШЭ ВОШ по предмету'!E44","v":"25.08.2008"},{"$f":"'[1]Протокол ШЭ ВОШ по предмету'!F44","v":"М"},"нет",8,8,{"$f":"'[1]Протокол ШЭ ВОШ по предмету'!J44","v":23},{"$f":"'[1]Протокол ШЭ ВОШ по предмету'!K44","v":70},{"$f":"'[1]Протокол ШЭ ВОШ по предмету'!L44","v":"участник"},{"$f":"'[1]Протокол ШЭ ВОШ по предмету'!M44","v":"нет"},{"$f":"'[1]Протокол ШЭ ВОШ по предмету'!N44","v":"Тартмина Лидия Михайловна"},{"$f":"'[1]Протокол ШЭ ВОШ по предмету'!O44","v":"Муниципальное бюджетное общеобразовательное учреждение \"Средняя общеобразовательная школа № 12 с углубленным изучением отдельных предметов\"\" Нижнекамского муниципального района Республики Татарстан\""}]
[44,{"$f":"'[1]Протокол ШЭ ВОШ по предмету'!B45","v":"Федоров"},{"$f":"'[1]Протокол ШЭ ВОШ по предмету'!C45","v":"Данил"},{"$f":"'[1]Протокол ШЭ ВОШ по предмету'!D45","v":"Владимирович"},{"$f":"'[1]Протокол ШЭ ВОШ по предмету'!E45","v":"07.03.2008"},{"$f":"'[1]Протокол ШЭ ВОШ по предмету'!F45","v":"М"},"нет",8,8,{"$f":"'[1]Протокол ШЭ ВОШ по предмету'!J45","v":15},{"$f":"'[1]Протокол ШЭ ВОШ по предмету'!K45","v":70},{"$f":"'[1]Протокол ШЭ ВОШ по предмету'!L45","v":"участник"},{"$f":"'[1]Протокол ШЭ ВОШ по предмету'!M45","v":"нет"},{"$f":"'[1]Протокол ШЭ ВОШ по предмету'!N45","v":"Катасонова Наталья Маратовна"},{"$f":"'[1]Протокол ШЭ ВОШ по предмету'!O45","v":"Муниципальное бюджетное общеобразовательное учреждение \"Средняя общеобразовательная школа № 12 с углубленным изучением отдельных предметов\"\" Нижнекамского муниципального района Республики Татарстан\""}]
[45,{"$f":"'[1]Протокол ШЭ ВОШ по предмету'!B46","v":"Федоров"},{"$f":"'[1]Протокол ШЭ ВОШ по предмету'!C46","v":"Кирилл"},{"$f":"'[1]Протокол ШЭ ВОШ по предмету'!D46","v":"Владимирович"},{"$f":"'[1]Протокол ШЭ ВОШ по предмету'!E46","v":"07.03.2008"},{"$f":"'[1]Протокол ШЭ ВОШ по предмету'!F46","v":"М"},"нет",8,8,{"$f":"'[1]Протокол ШЭ ВОШ по предмету'!J46","v":16},{"$f":"'[1]Протокол ШЭ ВОШ по предмету'!K46","v":70},{"$f":"'[1]Протокол ШЭ ВОШ по предмету'!L46","v":"участник"},{"$f":"'[1]Протокол ШЭ ВОШ по предмету'!M46","v":"нет"},{"$f":"'[1]Протокол ШЭ ВОШ по предмету'!N46","v":"Катасонова Наталья Маратовна"},{"$f":"'[1]Протокол ШЭ ВОШ по предмету'!O46","v":"Муниципальное бюджетное общеобразовательное учреждение \"Средняя общеобразовательная школа № 12 с углубленным изучением отдельных предметов\"\" Нижнекамского муниципального района Республики Татарстан\""}]
[46,{"$f":"'[1]Протокол ШЭ ВОШ по предмету'!B47","v":"Галаутдинов"},{"$f":"'[1]Протокол ШЭ ВОШ по предмету'!C47","v":"Данил"},{"$f":"'[1]Протокол ШЭ ВОШ по предмету'!D47","v":"Дамирович"},{"$f":"'[1]Протокол ШЭ ВОШ по предмету'!E47","v":"27.10.2007"},{"$f":"'[1]Протокол ШЭ ВОШ по предмету'!F47","v":"М"},"нет",8,8,{"$f":"'[1]Протокол ШЭ ВОШ по предмету'!J47","v":24},{"$f":"'[1]Протокол ШЭ ВОШ по предмету'!K47","v":70},{"$f":"'[1]Протокол ШЭ ВОШ по предмету'!L47","v":"участник"},{"$f":"'[1]Протокол ШЭ ВОШ по предмету'!M47","v":"нет"},{"$f":"'[1]Протокол ШЭ ВОШ по предмету'!N47","v":"Тартмина Лидия Михайловна"},{"$f":"'[1]Протокол ШЭ ВОШ по предмету'!O47","v":"Муниципальное бюджетное общеобразовательное учреждение \"Средняя общеобразовательная школа № 12 с углубленным изучением отдельных предметов\"\" Нижнекамского муниципального района Республики Татарстан\""}]
[47,{"$f":"'[1]Протокол ШЭ ВОШ по предмету'!B48","v":"Никифоров"},{"$f":"'[1]Протокол ШЭ ВОШ по предмету'!C48","v":"Тимур"},{"$f":"'[1]Протокол ШЭ ВОШ по предмету'!D48","v":"Александрович"},{"$f":"'[1]Протокол ШЭ ВОШ по предмету'!E48","v":"05.07.2008"},{"$f":"'[1]Протокол ШЭ ВОШ по предмету'!F48","v":"М"},"нет",8,8,{"$f":"'[1]Протокол ШЭ ВОШ по предмету'!J48","v":20},{"$f":"'[1]Протокол ШЭ ВОШ по предмету'!K48","v":70},{"$f":"'[1]Протокол ШЭ ВОШ по предмету'!L48","v":"участник"},{"$f":"'[1]Протокол ШЭ ВОШ по предмету'!M48","v":"нет"},{"$f":"'[1]Протокол ШЭ ВОШ по предмету'!N48","v":"Катасонова Наталья Маратовна"},{"$f":"'[1]Протокол ШЭ ВОШ по предмету'!O48","v":"Муниципальное бюджетное общеобразовательное учреждение \"Средняя общеобразовательная школа № 12 с углубленным изучением отдельных предметов\"\" Нижнекамского муниципального района Республики Татарстан\""}]
[48,{"$f":"'[1]Протокол ШЭ ВОШ по предмету'!B49","v":"Романчук"},{"$f":"'[1]Протокол ШЭ ВОШ по предмету'!C49","v":"Карина"},{"$f":"'[1]Протокол ШЭ ВОШ по предмету'!D49","v":"Эдуардовна"},{"$f":"'[1]Протокол ШЭ ВОШ по предмету'!E49","v":"15.05.2008"},{"$f":"'[1]Протокол ШЭ ВОШ по предмету'!F49","v":"Ж"},"нет",8,8,{"$f":"'[1]Протокол ШЭ ВОШ по предмету'!J49","v":22},{"$f":"'[1]Протокол ШЭ ВОШ по предмету'!K49","v":70},{"$f":"'[1]Протокол ШЭ ВОШ по предмету'!L49","v":"участник"},{"$f":"'[1]Протокол ШЭ ВОШ по предмету'!M49","v":"нет"},{"$f":"'[1]Протокол ШЭ ВОШ по предмету'!N49","v":"Катасонова Наталья Маратовна"},{"$f":"'[1]Протокол ШЭ ВОШ по предмету'!O49","v":"Муниципальное бюджетное общеобразовательное учреждение \"Средняя общеобразовательная школа № 12 с углубленным изучением отдельных предметов\"\" Нижнекамского муниципального района Республики Татарстан\""}]
[49,{"$f":"'[1]Протокол ШЭ ВОШ по предмету'!B50","v":"Храмова"},{"$f":"'[1]Протокол ШЭ ВОШ по предмету'!C50","v":"Елизавета"},{"$f":"'[1]Протокол ШЭ ВОШ по предмету'!D50","v":"Алексеевна"},{"$f":"'[1]Протокол ШЭ ВОШ по предмету'!E50","v":"22.03.2008"},{"$f":"'[1]Протокол ШЭ ВОШ по предмету'!F50","v":"Ж"},"нет",8,8,{"$f":"'[1]Протокол ШЭ ВОШ по предмету'!J50","v":30},{"$f":"'[1]Протокол ШЭ ВОШ по предмету'!K50","v":70},{"$f":"'[1]Протокол ШЭ ВОШ по предмету'!L50","v":"участник"},{"$f":"'[1]Протокол ШЭ ВОШ по предмету'!M50","v":"нет"},{"$f":"'[1]Протокол ШЭ ВОШ по предмету'!N50","v":"Катасонова Наталья Маратовна"},{"$f":"'[1]Протокол ШЭ ВОШ по предмету'!O50","v":"Муниципальное бюджетное общеобразовательное учреждение \"Средняя общеобразовательная школа № 12 с углубленным изучением отдельных предметов\"\" Нижнекамского муниципального района Республики Татарстан\""}]
[50,{"$f":"'[1]Протокол ШЭ ВОШ по предмету'!B51","v":"Гафиятуллина"},{"$f":"'[1]Протокол ШЭ ВОШ по предмету'!C51","v":"Карина"},{"$f":"'[1]Протокол ШЭ ВОШ по предмету'!D51","v":"Алексеевна"},{"$f":"'[1]Протокол ШЭ ВОШ по предмету'!E51","v":"2008-06-07"},{"$f":"'[1]Протокол ШЭ ВОШ по предмету'!F51","v":"Ж"},"нет",8,8,{"$f":"'[1]Протокол ШЭ ВОШ по предмету'!J51","v":17},{"$f":"'[1]Протокол ШЭ ВОШ по предмету'!K51","v":70},{"$f":"'[1]Протокол ШЭ ВОШ по предмету'!L51","v":"участник"},{"$f":"'[1]Протокол ШЭ ВОШ по предмету'!M51","v":"нет"},{"$f":"'[1]Протокол ШЭ ВОШ по предмету'!N51","v":"Тартмина Лидия Михайловна"},{"$f":"'[1]Протокол ШЭ ВОШ по предмету'!O51","v":"Муниципальное бюджетное общеобразовательное учреждение \"Средняя общеобразовательная школа № 12 с углубленным изучением отдельных предметов\"\" Нижнекамского муниципального района Республики Татарстан\""}]
[51,{"$f":"'[1]Протокол ШЭ ВОШ по предмету'!B52","v":"Салимов"},{"$f":"'[1]Протокол ШЭ ВОШ по предмету'!C52","v":"Манучехр"},{"$f":"'[1]Протокол ШЭ ВОШ по предмету'!D52","v":"Нуррудинович"},{"$f":"'[1]Протокол ШЭ ВОШ по предмету'!E52","v":"2006-04-18"},{"$f":"'[1]Протокол ШЭ ВОШ по предмету'!F52","v":"М"},"нет",9,9,{"$f":"'[1]Протокол ШЭ ВОШ по предмету'!J52","v":10},{"$f":"'[1]Протокол ШЭ ВОШ по предмету'!K52","v":90},{"$f":"'[1]Протокол ШЭ ВОШ по предмету'!L52","v":"участник"},{"$f":"'[1]Протокол ШЭ ВОШ по предмету'!M52","v":"нет"},{"$f":"'[1]Протокол ШЭ ВОШ по предмету'!N52","v":"Катасонова Наталья Маратовна"},{"$f":"'[1]Протокол ШЭ ВОШ по предмету'!O52","v":"Муниципальное бюджетное общеобразовательное учреждение \"Средняя общеобразовательная школа № 12 с углубленным изучением отдельных предметов\"\" Нижнекамского муниципального района Республики Татарстан\""}]
[52,{"$f":"'[1]Протокол ШЭ ВОШ по предмету'!B53","v":"Зайцева"},{"$f":"'[1]Протокол ШЭ ВОШ по предмету'!C53","v":"Валерия"},{"$f":"'[1]Протокол ШЭ ВОШ по предмету'!D53","v":"Романовна"},{"$f":"'[1]Протокол ШЭ ВОШ по предмету'!E53","v":"2006-12-27"},{"$f":"'[1]Протокол ШЭ ВОШ по предмету'!F53","v":"Ж"},"нет",9,9,{"$f":"'[1]Протокол ШЭ ВОШ по предмету'!J53","v":14},{"$f":"'[1]Протокол ШЭ ВОШ по предмету'!K53","v":90},{"$f":"'[1]Протокол ШЭ ВОШ по предмету'!L53","v":"участник"},{"$f":"'[1]Протокол ШЭ ВОШ по предмету'!M53","v":"нет"},{"$f":"'[1]Протокол ШЭ ВОШ по предмету'!N53","v":"Катасонова Наталья Маратовна"},{"$f":"'[1]Протокол ШЭ ВОШ по предмету'!O53","v":"Муниципальное бюджетное общеобразовательное учреждение \"Средняя общеобразовательная школа № 12 с углубленным изучением отдельных предметов\"\" Нижнекамского муниципального района Республики Татарстан\""}]
[53,{"$f":"'[1]Протокол ШЭ ВОШ по предмету'!B54","v":"Макарова"},{"$f":"'[1]Протокол ШЭ ВОШ по предмету'!C54","v":"Диана"},{"$f":"'[1]Протокол ШЭ ВОШ по предмету'!D54","v":"Алексеевна"},{"$f":"'[1]Протокол ШЭ ВОШ по предмету'!E54","v":"22.12.2006"},{"$f":"'[1]Протокол ШЭ ВОШ по предмету'!F54","v":"Ж"},"нет",9,9,{"$f":"'[1]Протокол ШЭ ВОШ по предмету'!J54","v":13},{"$f":"'[1]Протокол ШЭ ВОШ по предмету'!K54","v":90},{"$f":"'[1]Протокол ШЭ ВОШ по предмету'!L54","v":"участник"},{"$f":"'[1]Протокол ШЭ ВОШ по предмету'!M54","v":"нет"},{"$f":"'[1]Протокол ШЭ ВОШ по предмету'!N54","v":"Катасонова Наталья Маратовна"},{"$f":"'[1]Протокол ШЭ ВОШ по предмету'!O54","v":"Муниципальное бюджетное общеобразовательное учреждение \"Средняя общеобразовательная школа № 12 с углубленным изучением отдельных предметов\"\" Нижнекамского муниципального района Республики Татарстан\""}]
[54,{"$f":"'[1]Протокол ШЭ ВОШ по предмету'!B55","v":"Минкашева"},{"$f":"'[1]Протокол ШЭ ВОШ по предмету'!C55","v":"Алина"},{"$f":"'[1]Протокол ШЭ ВОШ по предмету'!D55","v":"Руслановна"},{"$f":"'[1]Протокол ШЭ ВОШ по предмету'!E55","v":"25.07.2007"},{"$f":"'[1]Протокол ШЭ ВОШ по предмету'!F55","v":"Ж"},"нет",9,9,{"$f":"'[1]Протокол ШЭ ВОШ по предмету'!J55","v":9},{"$f":"'[1]Протокол ШЭ ВОШ по предмету'!K55","v":90},{"$f":"'[1]Протокол ШЭ ВОШ по предмету'!L55","v":"участник"},{"$f":"'[1]Протокол ШЭ ВОШ по предмету'!M55","v":"нет"},{"$f":"'[1]Протокол ШЭ ВОШ по предмету'!N55","v":"Катасонова Наталья Маратовна"},{"$f":"'[1]Протокол ШЭ ВОШ по предмету'!O55","v":"Муниципальное бюджетное общеобразовательное учреждение \"Средняя общеобразовательная школа № 12 с углубленным изучением отдельных предметов\"\" Нижнекамского муниципального района Республики Татарстан\""}]
[55,{"$f":"'[1]Протокол ШЭ ВОШ по предмету'!B56","v":"Муталлапова"},{"$f":"'[1]Протокол ШЭ ВОШ по предмету'!C56","v":"Разиля"},{"$f":"'[1]Протокол ШЭ ВОШ по предмету'!D56","v":"Руслановна"},{"$f":"'[1]Протокол ШЭ ВОШ по предмету'!E56","v":"07.08.2007"},{"$f":"'[1]Протокол ШЭ ВОШ по предмету'!F56","v":"Ж"},"да",9,9,{"$f":"'[1]Протокол ШЭ ВОШ по предмету'!J56","v":20},{"$f":"'[1]Протокол ШЭ ВОШ по предмету'!K56","v":90},{"$f":"'[1]Протокол ШЭ ВОШ по предмету'!L56","v":"участник"},{"$f":"'[1]Протокол ШЭ ВОШ по предмету'!M56","v":"нет"},{"$f":"'[1]Протокол ШЭ ВОШ по предмету'!N56","v":"Катасонова Наталья Маратовна"},{"$f":"'[1]Протокол ШЭ ВОШ по предмету'!O56","v":"Муниципальное бюджетное общеобразовательное учреждение \"Средняя общеобразовательная школа № 12 с углубленным изучением отдельных предметов\"\" Нижнекамского муниципального района Республики Татарстан\""}]
[56,{"$f":"'[1]Протокол ШЭ ВОШ по предмету'!B57","v":"Малышева"},{"$f":"'[1]Протокол ШЭ ВОШ по предмету'!C57","v":"Мария"},{"$f":"'[1]Протокол ШЭ ВОШ по предмету'!D57","v":"Ивановна"},{"$f":"'[1]Протокол ШЭ ВОШ по предмету'!E57","v":"2007-07-16"},{"$f":"'[1]Протокол ШЭ ВОШ по предмету'!F57","v":"Ж"},"нет",9,9,{"$f":"'[1]Протокол ШЭ ВОШ по предмету'!J57","v":15},{"$f":"'[1]Протокол ШЭ ВОШ по предмету'!K57","v":90},{"$f":"'[1]Протокол ШЭ ВОШ по предмету'!L57","v":"участник"},{"$f":"'[1]Протокол ШЭ ВОШ по предмету'!M57","v":"нет"},{"$f":"'[1]Протокол ШЭ ВОШ по предмету'!N57","v":"Катасонова Наталья Маратовна"},{"$f":"'[1]Протокол ШЭ ВОШ по предмету'!O57","v":"Муниципальное бюджетное общеобразовательное учреждение \"Средняя общеобразовательная школа № 12 с углубленным изучением отдельных предметов\"\" Нижнекамского муниципального района Республики Татарстан\""}]
[57,{"$f":"'[1]Протокол ШЭ ВОШ по предмету'!B58","v":"Ефимова"},{"$f":"'[1]Протокол ШЭ ВОШ по предмету'!C58","v":"Регина"},{"$f":"'[1]Протокол ШЭ ВОШ по предмету'!D58","v":"Владимировна"},{"$f":"'[1]Протокол ШЭ ВОШ по предмету'!E58","v":"22.06.2007"},{"$f":"'[1]Протокол ШЭ ВОШ по предмету'!F58","v":"Ж"},"нет",9,9,{"$f":"'[1]Протокол ШЭ ВОШ по предмету'!J58","v":19},{"$f":"'[1]Протокол ШЭ ВОШ по предмету'!K58","v":90},{"$f":"'[1]Протокол ШЭ ВОШ по предмету'!L58","v":"участник"},{"$f":"'[1]Протокол ШЭ ВОШ по предмету'!M58","v":"нет"},{"$f":"'[1]Протокол ШЭ ВОШ по предмету'!N58","v":"Катасонова Наталья Маратовна"},{"$f":"'[1]Протокол ШЭ ВОШ по предмету'!O58","v":"Муниципальное бюджетное общеобразовательное учреждение \"Средняя общеобразовательная школа № 12 с углубленным изучением отдельных предметов\"\" Нижнекамского муниципального района Республики Татарстан\""}]
[58,{"$f":"'[1]Протокол ШЭ ВОШ по предмету'!B59","v":"Мустафина"},{"$f":"'[1]Протокол ШЭ ВОШ по предмету'!C59","v":"Розалина"},{"$f":"'[1]Протокол ШЭ ВОШ по предмету'!D59","v":"Зинуровна"},{"$f":"'[1]Протокол ШЭ ВОШ по предмету'!E59","v":"2007-05-09"},{"$f":"'[1]Протокол ШЭ ВОШ по предмету'!F59","v":"Ж"},"нет",9,9,{"$f":"'[1]Протокол ШЭ ВОШ по предмету'!J59","v":24},{"$f":"'[1]Протокол ШЭ ВОШ по предмету'!K59","v":90},{"$f":"'[1]Протокол ШЭ ВОШ по предмету'!L59","v":"участник"},{"$f":"'[1]Протокол ШЭ ВОШ по предмету'!M59","v":"нет"},{"$f":"'[1]Протокол ШЭ ВОШ по предмету'!N59","v":"Катасонова Наталья Маратовна"},{"$f":"'[1]Протокол ШЭ ВОШ по предмету'!O59","v":"Муниципальное бюджетное общеобразовательное учреждение \"Средняя общеобразовательная школа № 12 с углубленным изучением отдельных предметов\"\" Нижнекамского муниципального района Республики Татарстан\""}]
[59,{"$f":"'[1]Протокол ШЭ ВОШ по предмету'!B60","v":"Скитович"},{"$f":"'[1]Протокол ШЭ ВОШ по предмету'!C60","v":"Анна"},{"$f":"'[1]Протокол ШЭ ВОШ по предмету'!D60","v":"Владимировна"},{"$f":"'[1]Протокол ШЭ ВОШ по предмету'!E60","v":"22.12.2006"},{"$f":"'[1]Протокол ШЭ ВОШ по предмету'!F60","v":"Ж"},"нет",9,9,{"$f":"'[1]Протокол ШЭ ВОШ по предмету'!J60","v":60},{"$f":"'[1]Протокол ШЭ ВОШ по предмету'!K60","v":90},{"$f":"'[1]Протокол ШЭ ВОШ по предмету'!L60","v":"победитель"},{"$f":"'[1]Протокол ШЭ ВОШ по предмету'!M60","v":"нет"},{"$f":"'[1]Протокол ШЭ ВОШ по предмету'!N60","v":"Катасонова Наталья Маратовна"},{"$f":"'[1]Протокол ШЭ ВОШ по предмету'!O60","v":"Муниципальное бюджетное общеобразовательное учреждение \"Средняя общеобразовательная школа № 12 с углубленным изучением отдельных предметов\"\" Нижнекамского муниципального района Республики Татарстан\""}]
[60,{"$f":"'[1]Протокол ШЭ ВОШ по предмету'!B61","v":"Тасбеков"},{"$f":"'[1]Протокол ШЭ ВОШ по предмету'!C61","v":"Ранис"},{"$f":"'[1]Протокол ШЭ ВОШ по предмету'!D61","v":"Рифатович"},{"$f":"'[1]Протокол ШЭ ВОШ по предмету'!E61","v":"2007-10-06"},{"$f":"'[1]Протокол ШЭ ВОШ по предмету'!F61","v":"М"},"нет",9,9,{"$f":"'[1]Протокол ШЭ ВОШ по предмету'!J61","v":23},{"$f":"'[1]Протокол ШЭ ВОШ по предмету'!K61","v":90},{"$f":"'[1]Протокол ШЭ ВОШ по предмету'!L61","v":"участник"},{"$f":"'[1]Протокол ШЭ ВОШ по предмету'!M61","v":"нет"},{"$f":"'[1]Протокол ШЭ ВОШ по предмету'!N61","v":"Катасонова Наталья Маратовна"},{"$f":"'[1]Протокол ШЭ ВОШ по предмету'!O61","v":"Муниципальное бюджетное общеобразовательное учреждение \"Средняя общеобразовательная школа № 12 с углубленным изучением отдельных предметов\"\" Нижнекамского муниципального района Республики Татарстан\""}]
[61,{"$f":"'[1]Протокол ШЭ ВОШ по предмету'!B62","v":"Ишмухаметов"},{"$f":"'[1]Протокол ШЭ ВОШ по предмету'!C62","v":"Марсель"},{"$f":"'[1]Протокол ШЭ ВОШ по предмету'!D62","v":"Маратович"},{"$f":"'[1]Протокол ШЭ ВОШ по предмету'!E62","v":"2006-11-22"},{"$f":"'[1]Протокол ШЭ ВОШ по предмету'!F62","v":"М"},"нет",10,10,{"$f":"'[1]Протокол ШЭ ВОШ по предмету'!J62","v":31},{"$f":"'[1]Протокол ШЭ ВОШ по предмету'!K62","v":90},{"$f":"'[1]Протокол ШЭ ВОШ по предмету'!L62","v":"участник"},{"$f":"'[1]Протокол ШЭ ВОШ по предмету'!M62","v":"нет"},{"$f":"'[1]Протокол ШЭ ВОШ по предмету'!N62","v":"Катасонова Наталья Маратовна"},{"$f":"'[1]Протокол ШЭ ВОШ по предмету'!O62","v":"Муниципальное бюджетное общеобразовательное учреждение \"Средняя общеобразовательная школа № 12 с углубленным изучением отдельных предметов\"\" Нижнекамского муниципального района Республики Татарстан\""}]
[62,{"$f":"'[1]Протокол ШЭ ВОШ по предмету'!B63","v":"Синицын"},{"$f":"'[1]Протокол ШЭ ВОШ по предмету'!C63","v":"Данил"},{"$f":"'[1]Протокол ШЭ ВОШ по предмету'!D63","v":"Борисович"},{"$f":"'[1]Протокол ШЭ ВОШ по предмету'!E63","v":"2006-04-16"},{"$f":"'[1]Протокол ШЭ ВОШ по предмету'!F63","v":"М"},"нет",10,10,60,{"$f":"'[1]Протокол ШЭ ВОШ по предмету'!K63","v":90},{"$f":"'[1]Протокол ШЭ ВОШ по предмету'!L63","v":"победитель"},{"$f":"'[1]Протокол ШЭ ВОШ по предмету'!M63","v":"нет"},{"$f":"'[1]Протокол ШЭ ВОШ по предмету'!N63","v":"Катасонова Наталья Маратовна"},{"$f":"'[1]Протокол ШЭ ВОШ по предмету'!O63","v":"Муниципальное бюджетное общеобразовательное учреждение \"Средняя общеобразовательная школа № 12 с углубленным изучением отдельных предметов\"\" Нижнекамского муниципального района Республики Татарстан\""}]
[63,{"$f":"'[1]Протокол ШЭ ВОШ по предмету'!B64","v":"Зарипова"},{"$f":"'[1]Протокол ШЭ ВОШ по предмету'!C64","v":"Зарина"},{"$f":"'[1]Протокол ШЭ ВОШ по предмету'!D64","v":"Тахировна"},{"$f":"'[1]Протокол ШЭ ВОШ по предмету'!E64","v":"2006-03-13"},{"$f":"'[1]Протокол ШЭ ВОШ по предмету'!F64","v":"Ж"},"нет",10,10,{"$f":"'[1]Протокол ШЭ ВОШ по предмету'!J64","v":34},{"$f":"'[1]Протокол ШЭ ВОШ по предмету'!K64","v":90},{"$f":"'[1]Протокол ШЭ ВОШ по предмету'!L64","v":"участник"},{"$f":"'[1]Протокол ШЭ ВОШ по предмету'!M64","v":"нет"},{"$f":"'[1]Протокол ШЭ ВОШ по предмету'!N64","v":"Катасонова Наталья Маратовна"},{"$f":"'[1]Протокол ШЭ ВОШ по предмету'!O64","v":"Муниципальное бюджетное общеобразовательное учреждение \"Средняя общеобразовательная школа № 12 с углубленным изучением отдельных предметов\"\" Нижнекамского муниципального района Республики Татарстан\""}]
[64,{"$f":"'[1]Протокол ШЭ ВОШ по предмету'!B65","v":"Ильинкин"},{"$f":"'[1]Протокол ШЭ ВОШ по предмету'!C65","v":"Ярослав"},{"$f":"'[1]Протокол ШЭ ВОШ по предмету'!D65","v":"Денисович"},{"$f":"'[1]Протокол ШЭ ВОШ по предмету'!E65","v":"2006-10-07"},{"$f":"'[1]Протокол ШЭ ВОШ по предмету'!F65","v":"М"},"нет",10,10,{"$f":"'[1]Протокол ШЭ ВОШ по предмету'!J65","v":40},{"$f":"'[1]Протокол ШЭ ВОШ по предмету'!K65","v":90},{"$f":"'[1]Протокол ШЭ ВОШ по предмету'!L65","v":"участник"},{"$f":"'[1]Протокол ШЭ ВОШ по предмету'!M65","v":"нет"},{"$f":"'[1]Протокол ШЭ ВОШ по предмету'!N65","v":"Катасонова Наталья Маратовна"},{"$f":"'[1]Протокол ШЭ ВОШ по предмету'!O65","v":"Муниципальное бюджетное общеобразовательное учреждение \"Средняя общеобразовательная школа № 12 с углубленным изучением отдельных предметов\"\" Нижнекамского муниципального района Республики Татарстан\""}]
[65,{"$f":"'[1]Протокол ШЭ ВОШ по предмету'!B66","v":"Корнеева"},{"$f":"'[1]Протокол ШЭ ВОШ по предмету'!C66","v":"Милана"},{"$f":"'[1]Протокол ШЭ ВОШ по предмету'!D66","v":"Романовна"},{"$f":"'[1]Протокол ШЭ ВОШ по предмету'!E66","v":"2006-08-02"},{"$f":"'[1]Протокол ШЭ ВОШ по предмету'!F66","v":"Ж"},"нет",10,10,{"$f":"'[1]Протокол ШЭ ВОШ по предмету'!J66","v":30},{"$f":"'[1]Протокол ШЭ ВОШ по предмету'!K66","v":90},{"$f":"'[1]Протокол ШЭ ВОШ по предмету'!L66","v":"участник"},{"$f":"'[1]Протокол ШЭ ВОШ по предмету'!M66","v":"нет"},{"$f":"'[1]Протокол ШЭ ВОШ по предмету'!N66","v":"Катасонова Наталья Маратовна"},{"$f":"'[1]Протокол ШЭ ВОШ по предмету'!O66","v":"Муниципальное бюджетное общеобразовательное учреждение \"Средняя общеобразовательная школа № 12 с углубленным изучением отдельных предметов\"\" Нижнекамского муниципального района Республики Татарстан\""}]
[66,{"$f":"'[1]Протокол ШЭ ВОШ по предмету'!B67","v":"Рогожина"},{"$f":"'[1]Протокол ШЭ ВОШ по предмету'!C67","v":"Светлана"},{"$f":"'[1]Протокол ШЭ ВОШ по предмету'!D67","v":"Владимировна"},{"$f":"'[1]Протокол ШЭ ВОШ по предмету'!E67","v":"2006-04-12"},{"$f":"'[1]Протокол ШЭ ВОШ по предмету'!F67","v":"Ж"},"нет",10,10,{"$f":"'[1]Протокол ШЭ ВОШ по предмету'!J67","v":20},{"$f":"'[1]Протокол ШЭ ВОШ по предмету'!K67","v":90},{"$f":"'[1]Протокол ШЭ ВОШ по предмету'!L67","v":"участник"},{"$f":"'[1]Протокол ШЭ ВОШ по предмету'!M67","v":"нет"},{"$f":"'[1]Протокол ШЭ ВОШ по предмету'!N67","v":"Катасонова Наталья Маратовна"},{"$f":"'[1]Протокол ШЭ ВОШ по предмету'!O67","v":"Муниципальное бюджетное общеобразовательное учреждение \"Средняя общеобразовательная школа № 12 с углубленным изучением отдельных предметов\"\" Нижнекамского муниципального района Республики Татарстан\""}]
[67,{"$f":"'[1]Протокол ШЭ ВОШ по предмету'!B68","v":"Угольникова"},{"$f":"'[1]Протокол ШЭ ВОШ по предмету'!C68","v":"Яна"},{"$f":"'[1]Протокол ШЭ ВОШ по предмету'!D68","v":"Артемовна"},{"$f":"'[1]Протокол ШЭ ВОШ по предмету'!E68","v":"2006-03-13"},{"$f":"'[1]Протокол ШЭ ВОШ по предмету'!F68","v":"Ж"},"нет",10,10,{"$f":"'[1]Протокол ШЭ ВОШ по предмету'!J68","v":26},{"$f":"'[1]Протокол ШЭ ВОШ по предмету'!K68","v":90},{"$f":"'[1]Протокол ШЭ ВОШ по предмету'!L68","v":"участник"},{"$f":"'[1]Протокол ШЭ ВОШ по предмету'!M68","v":"нет"},{"$f":"'[1]Протокол ШЭ ВОШ по предмету'!N68","v":"Катасонова Наталья Маратовна"},{"$f":"'[1]Протокол ШЭ ВОШ по предмету'!O68","v":"Муниципальное бюджетное общеобразовательное учреждение \"Средняя общеобразовательная школа № 12 с углубленным изучением отдельных предметов\"\" Нижнекамского муниципального района Республики Татарстан\""}]
[68,{"$f":"'[1]Протокол ШЭ ВОШ по предмету'!B69","v":"Лыков"},{"$f":"'[1]Протокол ШЭ ВОШ по предмету'!C69","v":"Илья"},{"$f":"'[1]Протокол ШЭ ВОШ по предмету'!D69","v":"Андреевич"},{"$f":"'[1]Протокол ШЭ ВОШ по предмету'!E69","v":"24.12.2005"},{"$f":"'[1]Протокол ШЭ ВОШ по предмету'!F69","v":"М"},"нет",10,10,{"$f":"'[1]Протокол ШЭ ВОШ по предмету'!J69","v":25},{"$f":"'[1]Протокол ШЭ ВОШ по предмету'!K69","v":90},{"$f":"'[1]Протокол ШЭ ВОШ по предмету'!L69","v":"участник"},{"$f":"'[1]Протокол ШЭ ВОШ по предмету'!M69","v":"нет"},{"$f":"'[1]Протокол ШЭ ВОШ по предмету'!N69","v":"Катасонова Наталья Маратовна"},{"$f":"'[1]Протокол ШЭ ВОШ по предмету'!O69","v":"Муниципальное бюджетное общеобразовательное учреждение \"Средняя общеобразовательная школа № 12 с углубленным изучением отдельных предметов\"\" Нижнекамского муниципального района Республики Татарстан\""}]
[69,{"$f":"'[1]Протокол ШЭ ВОШ по предмету'!B70","v":"Шакирова"},{"$f":"'[1]Протокол ШЭ ВОШ по предмету'!C70","v":"Алия"},{"$f":"'[1]Протокол ШЭ ВОШ по предмету'!D70","v":"Раилевна"},{"$f":"'[1]Протокол ШЭ ВОШ по предмету'!E70","v":"2006-10-04"},{"$f":"'[1]Протокол ШЭ ВОШ по предмету'!F70","v":"Ж"},"нет",10,10,{"$f":"'[1]Протокол ШЭ ВОШ по предмету'!J70","v":15},{"$f":"'[1]Протокол ШЭ ВОШ по предмету'!K70","v":90},{"$f":"'[1]Протокол ШЭ ВОШ по предмету'!L70","v":"участник"},{"$f":"'[1]Протокол ШЭ ВОШ по предмету'!M70","v":"нет"},{"$f":"'[1]Протокол ШЭ ВОШ по предмету'!N70","v":"Катасонова Наталья Маратовна"},{"$f":"'[1]Протокол ШЭ ВОШ по предмету'!O70","v":"Муниципальное бюджетное общеобразовательное учреждение \"Средняя общеобразовательная школа № 12 с углубленным изучением отдельных предметов\"\" Нижнекамского муниципального района Республики Татарстан\""}]
[70,{"$f":"'[1]Протокол ШЭ ВОШ по предмету'!B71","v":"Шакиров "},{"$f":"'[1]Протокол ШЭ ВОШ по предмету'!C71","v":"Тимур"},{"$f":"'[1]Протокол ШЭ ВОШ по предмету'!D71","v":"Рамилевич"},{"$f":"'[1]Протокол ШЭ ВОШ по предмету'!E71","v":"2006-08-09"},{"$f":"'[1]Протокол ШЭ ВОШ по предмету'!F71","v":"М"},"нет",10,10,{"$f":"'[1]Протокол ШЭ ВОШ по предмету'!J71","v":19},{"$f":"'[1]Протокол ШЭ ВОШ по предмету'!K71","v":90},{"$f":"'[1]Протокол ШЭ ВОШ по предмету'!L71","v":"участник"},{"$f":"'[1]Протокол ШЭ ВОШ по предмету'!M71","v":"нет"},{"$f":"'[1]Протокол ШЭ ВОШ по предмету'!N71","v":"Катасонова Наталья Маратовна"},{"$f":"'[1]Протокол ШЭ ВОШ по предмету'!O71","v":"Муниципальное бюджетное общеобразовательное учреждение \"Средняя общеобразовательная школа № 12 с углубленным изучением отдельных предметов\"\" Нижнекамского муниципального района Республики Татарстан\""}]